fUSD/lending_fUSD_20240624
["ID","MTS","AMOUNT","RATE_DAILY","PERIOD"]
[330318094,1719257435910,-200.0,0.00014281,2]
[330318095,1719257435920,-2000.0,0.00014424,2]
[330318096,1719257435932,-200.0,0.00014424,2]
[330318097,1719257435942,-2000.0,0.00014568,2]
[330318098,1719257435951,-200.0,0.00014568,2]
[330318099,1719257435960,-242.12454532,0.00014716,2]
[330318100,1719257435970,-157.69153466,0.00014716,2]
[330318101,1719257435978,-1635.38620182,0.00014717,2]
[330318102,1719257435986,-320.789799,0.00014795,2]
[330318103,1719257435995,-528.0988798,0.00014799,2]
[330318104,1719257436004,-1279.25528947,0.00014899,2]
[330318105,1719257436013,-35716.66614846,0.00014899,2]
[330318106,1719257436022,-241.07944647,0.00014999,2]
[330318107,1719257436032,-24302.66821445,0.00015,2]
[330318108,1719257436041,-5000.0,0.00015,2]
[330318109,1719257436051,-155.0,0.00015092,2]
[330318110,1719257436060,-210.0,0.00015093,2]
[330318111,1719257436069,-155.0,0.0001515,2]
[330318112,1719257436079,-1000.0,0.00015151,2]
[330318113,1719257436088,-514.77354818,0.00015184,2]
[330318114,1719257436098,-559.19857836,0.00015185,2]
[330318115,1719257436107,-173.22,0.00015187,2]
[330318116,1719257436117,-155.0,0.00015534,2]
[330318117,1719257436126,-1635.38620182,0.00015535,2]
[330318118,1719257436139,-320.789799,0.00015616,2]
[330318119,1719257436148,-766.21694001,0.00015897,2]
[330318120,1719257436158,-1279.25528947,0.00015898,2]
[330318121,1719257436167,-155.0,0.00016147,2]
[330318122,1719257436177,-160.6069912,0.00016148,2]
[330318123,1719257436187,-467.51,0.00016267,2]
[330318124,1719257436197,-1635.38620182,0.00016352,2]
[330318125,1719257436208,-1988.00261,0.0001636,2]
[330318126,1719257436218,-320.789799,0.00016438,2]
[330318127,1719257436227,-670.34,0.00016461,2]
[330318128,1719257436237,-514.77354818,0.00016469,2]
[330318129,1719257436247,-543.83180554,0.00016551,2]
[330318130,1719257436257,-235.24436806,0.00016552,2]
[330318131,1719257436267,-660.88004316,0.00016552,2]
[330318132,1719257436277,-173.35966606,0.00016553,2]
[330318133,1719257436287,-887.68380317,0.00016554,2]
[330318134,1719257436297,-163.58641568,0.00016556,2]
[330318135,1719257436306,-159.37216947,0.00016601,2]
[330318136,1719257436316,-222.0,0.00016602,2]
[330318137,1719257436325,-1000.0,0.00016834,2]
[330318138,1719257436335,-176.45216287,0.00016891,2]
[330318139,1719257436344,-378.49941491,0.00016892,2]
[330318140,1719257436355,-1279.25528947,0.00016897,2]
[330318141,1719257436370,-151.0,0.00016897,2]
[330318142,1719257436380,-199.359591,0.00016897,2]
[330318143,1719257436391,-199.359591,0.00016897,2]
[330318144,1719257436402,-151.0,0.00016897,2]
[330318145,1719257436412,-576.631628,0.00016897,2]
[330318146,1719257436422,-151.0,0.00016897,2]
[330318147,1719257436432,-576.631628,0.00016897,2]
[330318148,1719257436444,-151.0,0.00016897,2]
[330318149,1719257436454,-151.0,0.00016897,2]
[330318150,1719257436465,-151.0,0.00016897,2]
[330318151,1719257436474,-383.483628,0.00016897,2]
[330318152,1719257436484,-378.962525,0.00016897,2]
[330318153,1719257436494,-244.697056,0.00016897,2]
[330318154,1719257436504,-383.483628,0.00016897,2]
[330318155,1719257436513,-378.962525,0.00016897,2]
[330318156,1719257436523,-244.697056,0.00016897,2]
[330318157,1719257436533,-151.0,0.00016897,2]
[330318158,1719257436543,-151.0,0.00016897,2]
[330318159,1719257436553,-183.551754,0.00016897,2]
[330318160,1719257436563,-151.0,0.00016897,2]
[330318161,1719257436572,-183.551754,0.00016897,2]
[330318162,1719257436582,-152.479974,0.00016897,2]
[330318163,1719257436592,-151.0,0.00016897,2]
[330318164,1719257436601,-151.0,0.00016897,2]
[330318165,1719257436611,-151.0,0.00016897,2]
[330318166,1719257436620,-281.641518,0.00016897,2]
[330318167,1719257436630,-151.0,0.00016897,2]
[330318168,1719257436640,-151.0,0.00016897,2]
[330318169,1719257436650,-151.0,0.00016897,2]
[330318170,1719257436659,-151.0,0.00016897,2]
[330318171,1719257436669,-151.0,0.00016897,2]
[330318172,1719257436679,-197.663913,0.00016897,2]
[330318173,1719257436688,-151.0,0.00016897,2]
[330318174,1719257436698,-197.663913,0.00016897,2]
[330318175,1719257436709,-151.0,0.00016897,2]
[330318176,1719257436718,-151.0,0.00016897,2]
[330318177,1719257436728,-151.0,0.00016897,2]
[330318178,1719257436737,-339.30792,0.00016897,2]
[330318179,1719257436747,-1161.234529,0.00016897,2]
[330318180,1719257436757,-301.422606,0.00016897,2]
[330318181,1719257436767,-339.30792,0.00016897,2]
[330318182,1719257436777,-301.422606,0.00016897,2]
[330318183,1719257436787,-1161.234529,0.00016897,2]
[330318184,1719257436797,-151.0,0.00016897,2]
[330318185,1719257436806,-151.0,0.00016897,2]
[330318186,1719257436816,-606.419929,0.00016897,2]
[330318187,1719257436826,-606.419929,0.00016897,2]
[330318188,1719257436835,-456.093793,0.00016897,2]
[330318189,1719257436846,-151.621177,0.00016897,2]
[330318190,1719257436855,-456.093793,0.00016897,2]
[330318191,1719257436864,-151.0,0.00017169,2]
[330318192,1719257436874,-151.0,0.00017169,2]
[330318193,1719257436883,-151.0,0.00017169,2]
[330318194,1719257436897,-151.0,0.00017169,2]
[330318195,1719257436907,-151.0,0.00017169,2]
[330318196,1719257436916,-161.552564,0.00017169,2]
[330318197,1719257436926,-1430.350881,0.00017169,2]
[330318198,1719257436935,-151.0,0.00017169,2]
[330318199,1719257436944,-1430.350881,0.00017169,2]
[330318200,1719257436953,-151.0,0.00017169,2]
[330318201,1719257436963,-168.913161,0.00017169,2]
[330318202,1719257436972,-168.913161,0.00017169,2]
[330318203,1719257436982,-151.0,0.00017169,2]
[330318204,1719257436991,-1635.38620182,0.00017169,2]
[330318205,1719257437001,-320.789799,0.0001726,2]
[330318206,1719257437011,-3357.0,0.000176,3]
[330318207,1719257437023,-514.77354818,0.00017753,2]
[330318208,1719257437035,-1279.25528947,0.00017896,2]
[330318209,1719257437045,-1635.38620182,0.00017986,2]
[330318210,1719257437055,-155.1371428,0.00018,2]
[330318211,1719257437066,-169.61284638,0.00018081,2]
[330318212,1719257437076,-160.6069912,0.00018395,2]
[330318213,1719257437086,-173.22,0.00018409,2]
[330318214,1719257437096,-1000.0,0.00018517,2]
[330318215,1719257437105,-467.51,0.00018531,2]
[330318216,1719257437114,-1635.38620182,0.00018804,2]
[330318217,1719257437124,-1988.00261,0.0001886,2]
[330318218,1719257437133,-208.70095318,0.00018894,2]
[330318219,1719257437148,-1053.97863169,0.00018894,2]
[330318220,1719257437158,-1279.25528947,0.00018894,2]
[330318221,1719257437168,-151.0,0.00018895,2]
[330318222,1719257437177,-151.0,0.00018895,2]
[330318223,1719257437187,-151.0,0.00018895,2]
[330318224,1719257437197,-151.0,0.00018895,2]
[330318225,1719257437207,-151.628031,0.00018895,2]
[330318226,1719257437217,-151.0,0.00018895,2]
[330318227,1719257437227,-228.109757,0.00018895,2]
[330318228,1719257437237,-151.0,0.00018895,2]
[330318229,1719257437246,-151.0,0.00018895,2]
[330318230,1719257437256,-151.0,0.00018895,2]
[330318231,1719257437265,-151.0,0.00018895,2]
[330318232,1719257437275,-151.0,0.00018895,2]
[330318233,1719257437285,-221.91433,0.00018895,2]
[330318234,1719257437294,-1333.471904,0.00018895,2]
[330318235,1719257437304,-221.91433,0.00018895,2]
[330318236,1719257437314,-1333.471904,0.00018895,2]
[330318237,1719257437324,-151.0,0.00018895,2]
[330318238,1719257437334,-218.910082,0.00018895,2]
[330318239,1719257437343,-215.280864,0.00018895,2]
[330318240,1719257437354,-151.0,0.00018895,2]
[330318241,1719257437367,-199.359591,0.00018895,2]
[330318242,1719257437376,-199.359591,0.00018895,2]
[330318243,1719257437388,-151.0,0.00018895,2]
[330318244,1719257437399,-576.631628,0.00018895,2]
[330318245,1719257437409,-151.0,0.00018895,2]
[330318246,1719257437419,-576.631628,0.00018895,2]
[330318247,1719257437428,-151.0,0.00018895,2]
[330318248,1719257437439,-151.0,0.00018895,2]
[330318249,1719257437451,-151.0,0.00018895,2]
[330318250,1719257437460,-151.0,0.00018895,2]
[330318251,1719257437470,-151.0,0.00018895,2]
[330318252,1719257437480,-206.439814,0.00018895,2]
[330318253,1719257437489,-1430.350881,0.00018895,2]
[330318254,1719257437500,-151.0,0.00018895,2]
[330318255,1719257437509,-1430.350881,0.00018895,2]
[330318256,1719257437519,-151.0,0.00018895,2]
[330318257,1719257437528,-151.0,0.00018895,2]
[330318258,1719257437539,-168.913161,0.00018895,2]
[330318259,1719257437549,-168.913161,0.00018895,2]
[330318260,1719257437558,-151.0,0.00018895,2]
[330318261,1719257437568,-154.872482,0.00018895,2]
[330318262,1719257437578,-383.483628,0.00018895,2]
[330318263,1719257437587,-378.962525,0.00018895,2]
[330318264,1719257437597,-244.697056,0.00018895,2]
[330318265,1719257437606,-383.483628,0.00018895,2]
[330318266,1719257437616,-378.962525,0.00018895,2]
[330318267,1719257437777,-244.697056,0.00018895,2]
[330318268,1719257437788,-151.0,0.00018895,2]
[330318269,1719257437799,-152.977553,0.00018895,2]
[330318270,1719257437808,-183.551754,0.00018895,2]
[330318271,1719257437818,-151.0,0.00018895,2]
[330318272,1719257437828,-183.551754,0.00018895,2]
[330318273,1719257437838,-151.0,0.00018895,2]
[330318274,1719257437848,-151.0,0.00018895,2]
[330318275,1719257437859,-151.0,0.00018895,2]
[330318276,1719257437869,-151.0,0.00018895,2]
[330318277,1719257437879,-151.0,0.00018895,2]
[330318278,1719257437890,-151.0,0.00018895,2]
[330318279,1719257437900,-151.0,0.00018895,2]
[330318280,1719257437910,-151.0,0.00018895,2]
[330318281,1719257437920,-197.663913,0.00018895,2]
[330318282,1719257437930,-151.0,0.00018895,2]
[330318283,1719257437940,-197.663913,0.00018895,2]
[330318284,1719257437950,-151.0,0.00018895,2]
[330318285,1719257437959,-151.0,0.00018895,2]
[330318286,1719257437971,-151.0,0.00018895,2]
[330318287,1719257437981,-339.30792,0.00018895,2]
[330318288,1719257437991,-1161.234529,0.00018895,2]
[330318289,1719257438001,-301.422606,0.00018895,2]
[330318290,1719257438011,-339.30792,0.00018895,2]
[330318291,1719257438021,-301.422606,0.00018895,2]
[330318292,1719257438031,-1161.234529,0.00018895,2]
[330318293,1719257438040,-151.0,0.00018895,2]
[330318294,1719257438050,-151.0,0.00018895,2]
[330318295,1719257438060,-606.419929,0.00018895,2]
[330318296,1719257438069,-606.419929,0.00018895,2]
[330318297,1719257438080,-456.093793,0.00018895,2]
[330318298,1719257438091,-456.093793,0.00018895,2]
[330318299,1719257438101,-155.0,0.00018999,2]
[330318300,1719257438110,-646.93267551,0.00018999,2]
[330318301,1719257438120,-258.61409544,0.00018999,2]
[330318302,1719257438130,-430.54118397,0.00018999,2]
[330318303,1719257438141,-514.77354818,0.00019037,2]
[330318304,1719257438151,-500.0,0.00019178,2]
[330318305,1719257438160,-372.14449568,0.00019178,2]
[330318306,1719257438170,-325.6,0.00019178,2]
[330318307,1719257438179,-325.6,0.00019178,2]
[330318308,1719257438190,-250.0,0.00019178,2]
[330318309,1719257438200,-22585.26,0.00019178,2]
[330318310,1719257438210,-208.76,0.00019178,2]
[330318311,1719257438220,-500.0,0.000192,7]
[330318312,1719257438230,-670.34,0.00019201,2]
[330318313,1719257438240,-190.78,0.00019472,2]
[330318314,1719257438251,-1635.38620182,0.00019621,2]
[330318315,1719257438261,-1285.71256166,0.0001967,2]
[330318316,1719257438270,-98.67782391,0.0001967,2]
[330318317,1719257438286,-428.32614833,0.0001967,2]
[330318318,1719257438299,-5.55741888,0.0001967,2]
[330318319,1719257438309,-258.53663412,0.0001967,2]
[330318320,1719257438319,-173.15953483,0.0001967,2]
[330318321,1719257438332,-614.61149776,0.0001967,2]
[330318322,1719257438342,-1168.0,0.0001989,2]
[330318323,1719257438352,-221.91433,0.00019893,2]
[330318324,1719257438365,-221.91433,0.00019893,2]
[330318325,1719257438374,-156.365427,0.00019893,2]
[330318326,1719257438384,-151.0,0.00019893,2]
[330318327,1719257438397,-199.359591,0.00019893,2]
[330318328,1719257438408,-199.359591,0.00019893,2]
[330318329,1719257438418,-151.0,0.00019893,2]
[330318330,1719257438427,-576.631628,0.00019893,2]
[330318331,1719257438438,-151.0,0.00019893,2]
[330318332,1719257438449,-576.631628,0.00019893,2]
[330318333,1719257438459,-151.0,0.00019893,2]
[330318334,1719257438469,-383.483628,0.00019893,2]
[330318335,1719257438479,-378.962525,0.00019893,2]
[330318336,1719257438489,-244.697056,0.00019893,2]
[330318337,1719257438499,-383.483628,0.00019893,2]
[330318338,1719257438509,-378.962525,0.00019893,2]
[330318339,1719257438519,-244.697056,0.00019893,2]
[330318340,1719257438528,-151.0,0.00019893,2]
[330318341,1719257438539,-183.551754,0.00019893,2]
[330318342,1719257438549,-151.0,0.00019893,2]
[330318343,1719257438559,-183.551754,0.00019893,2]
[330318344,1719257438569,-151.0,0.00019893,2]
[330318345,1719257438579,-269.328752,0.00019893,2]
[330318346,1719257438589,-151.0,0.00019893,2]
[330318347,1719257438599,-151.0,0.00019893,2]
[330318348,1719257438609,-151.0,0.00019893,2]
[330318349,1719257438618,-151.0,0.00019893,2]
[330318350,1719257438628,-151.0,0.00019893,2]
[330318351,1719257438639,-151.0,0.00019893,2]
[330318352,1719257438649,-197.663913,0.00019893,2]
[330318353,1719257438658,-151.0,0.00019893,2]
[330318354,1719257438670,-197.663913,0.00019893,2]
[330318355,1719257438680,-151.0,0.00019893,2]
[330318356,1719257438690,-151.0,0.00019893,2]
[330318357,1719257438699,-151.0,0.00019893,2]
[330318358,1719257438709,-339.30792,0.00019893,2]
[330318359,1719257438719,-1161.234529,0.00019893,2]
[330318360,1719257438729,-301.422606,0.00019893,2]
[330318361,1719257438739,-339.30792,0.00019893,2]
[330318362,1719257438749,-301.422606,0.00019893,2]
[330318363,1719257438758,-1161.234529,0.00019893,2]
[330318364,1719257438768,-151.0,0.00019893,2]
[330318365,1719257438778,-151.0,0.00019893,2]
[330318366,1719257438788,-606.419929,0.00019893,2]
[330318367,1719257438798,-606.419929,0.00019893,2]
[330318368,1719257438814,-456.093793,0.00019893,2]
[330318369,1719257438825,-456.093793,0.00019893,2]
[330318370,1719257438836,-1279.25528947,0.00019893,2]
[330318371,1719257438849,-159.4371568,0.0002,2]
[330318372,1719257438860,-217.3438033,0.0002,2]
[330318373,1719257438871,-1272.90615694,0.0002,2]
[330318374,1719257438882,-155.0,0.0002,2]
[330318375,1719257438900,-272.63270154,0.0002,2]
[330318376,1719257438910,-1605.29438725,0.0002,7]
[330318377,1719257438920,-151.0,0.0002,2]
[330318378,1719257438930,-151.0,0.0002,2]
[330318379,1719257438940,-151.0,0.0002,2]
[330318380,1719257438950,-151.0,0.0002,2]
[330318381,1719257438961,-1333.471904,0.0002,2]
[330318382,1719257438974,-1333.471904,0.0002,2]
[330318383,1719257438984,-151.0,0.0002,2]
[330318385,1719257438994,-151.0,0.0002,2]
[330318387,1719257439004,-151.0,0.0002,2]
[330318389,1719257439015,-151.0,0.0002,2]
[330318391,1719257439027,-151.0,0.0002,2]
[330318393,1719257439038,-1430.350881,0.0002,2]
[330318395,1719257439050,-151.0,0.0002,2]
[330318397,1719257439061,-1063.06234367,0.0002,2]
[330318399,1719257439077,-367.28853733,0.0002,2]
[330318401,1719257439088,-151.0,0.0002,2]
[330318403,1719257439099,-168.913161,0.0002,2]
[330318405,1719257439110,-168.913161,0.0002,2]
[330318407,1719257439120,-151.0,0.0002,2]
[330318409,1719257439131,-3.7321493,0.0002,2]
[330318410,1719257439145,-151.2678507,0.0002,2]
[330318411,1719257439156,-1846.35927223,0.0002,2]
[330318412,1719257439166,-2016.28833189,0.000202,2]
[330318413,1719257439176,-1000.0,0.00020201,2]
[330318414,1719257439185,-811.68,0.0002023,2]
[330318415,1719257439195,-2379.133,0.00020305,2]
[330318416,1719257439205,-514.77354818,0.00020321,2]
[330318417,1719257439216,-1035.62731668,0.00020438,2]
[330318418,1719257439230,-599.75888514,0.00020438,2]
[330318419,1719257439240,-160.6069912,0.00020643,2]
[330318420,1719257439250,-5014.68228613,0.0002068,2]
[330318421,1719257439263,-3071.91999903,0.0002068,2]
[330318422,1719257439275,-3411.11018416,0.0002068,2]
[330318437,1719257441144,-155.36558088,0.00014899,2]
[330318439,1719257441154,-301.23927941,0.00015898,2]
[330318442,1719257441168,-3332.97664968,0.00015898,2]
[330318444,1719257441180,-1014.4073902,0.00015898,2]
[330318457,1719257441307,-1e-08,0.00015898,2]
[330318459,1719257441319,-589.98973099,0.00015898,2]
[330318462,1719257441332,-351.92,0.00015898,2]
[330318464,1719257441345,-1000.0,0.00015898,2]
[330318466,1719257441362,-3021.85448745,0.00015898,2]
[330318541,1719257442084,-26104.27861072,0.00015898,2]
[330318543,1719257442096,-320.789799,0.00018082,2]
[330318545,1719257442106,-320.789799,0.00018904,2]
[330318547,1719257442117,-501.27197359,0.00018999,2]
[330318550,1719257442133,-155.0,0.00018999,2]
[330318552,1719257442149,-320.789799,0.00019726,2]
[330318554,1719257442160,-135138.08932625,0.0002068,2]
[330318556,1719257442170,-151.0,0.0002068,2]
[330318558,1719257442181,-151.0,0.0002068,2]
[330318560,1719257442192,-197.473045,0.0002068,2]
[330318562,1719257442204,-151.0,0.0002068,2]
[330318564,1719257442215,-325.6,0.0002068,2]
[330318566,1719257442225,-325.6,0.0002068,2]
[330318568,1719257442236,-151.0,0.0002068,2]
[330318570,1719257442247,-152.129061,0.0002068,2]
[330318572,1719257442256,-151.0,0.0002068,2]
[330318574,1719257442267,-151.0,0.0002068,2]
[330318577,1719257442277,-221.91433,0.0002068,2]
[330318579,1719257442287,-1333.471904,0.0002068,2]
[330318580,1719257442297,-221.91433,0.0002068,2]
[330318582,1719257442307,-1333.471904,0.0002068,2]
[330318585,1719257442319,-151.0,0.0002068,2]
[330318587,1719257442330,-199.359591,0.0002068,2]
[330318589,1719257442340,-199.359591,0.0002068,2]
[330318591,1719257442351,-170.82472,0.0002068,2]
[330318593,1719257442365,-576.631628,0.0002068,2]
[330318595,1719257442376,-151.0,0.0002068,2]
[330318597,1719257442387,-576.631628,0.0002068,2]
[330318599,1719257442403,-151.0,0.0002068,2]
[330318601,1719257442413,-151.0,0.0002068,2]
[330318603,1719257442424,-151.0,0.0002068,2]
[330318605,1719257442434,-151.0,0.0002068,2]
[330318607,1719257442447,-151.0,0.0002068,2]
[330318609,1719257442458,-151.0,0.0002068,2]
[330318611,1719257442468,-1430.350881,0.0002068,2]
[330318613,1719257442479,-151.0,0.0002068,2]
[330318615,1719257442489,-151.0,0.0002068,2]
[330318617,1719257442500,-168.913161,0.0002068,2]
[330318620,1719257442511,-168.913161,0.0002068,2]
[330318622,1719257442520,-188.272434,0.0002068,2]
[330318624,1719257442531,-383.483628,0.0002068,2]
[330318626,1719257442540,-378.962525,0.0002068,2]
[330318628,1719257442550,-244.697056,0.0002068,2]
[330318630,1719257442560,-383.483628,0.0002068,2]
[330318657,1719257442794,-378.962525,0.0002068,2]
[330318660,1719257442826,-244.697056,0.0002068,2]
[330318661,1719257442836,-151.0,0.0002068,2]
[330318662,1719257442847,-183.551754,0.0002068,2]
[330318663,1719257442857,-151.0,0.0002068,2]
[330318664,1719257442866,-183.551754,0.0002068,2]
[330318665,1719257442875,-151.0,0.0002068,2]
[330318666,1719257442885,-151.0,0.0002068,2]
[330318667,1719257442896,-151.0,0.0002068,2]
[330318668,1719257442905,-274.30054,0.0002068,2]
[330318669,1719257442915,-151.0,0.0002068,2]
[330318670,1719257442924,-151.0,0.0002068,2]
[330318671,1719257442936,-151.0,0.0002068,2]
[330318672,1719257442946,-197.663913,0.0002068,2]
[330318673,1719257442956,-151.0,0.0002068,2]
[330318674,1719257442966,-197.663913,0.0002068,2]
[330318676,1719257442976,-151.0,0.0002068,2]
[330318678,1719257442986,-151.0,0.0002068,2]
[330318680,1719257442995,-151.0,0.0002068,2]
[330318682,1719257443005,-339.30792,0.0002068,2]
[330318684,1719257443015,-1161.234529,0.0002068,2]
[330318686,1719257443025,-301.422606,0.0002068,2]
[330318688,1719257443035,-339.30792,0.0002068,2]
[330318690,1719257443044,-301.422606,0.0002068,2]
[330318692,1719257443054,-1161.234529,0.0002068,2]
[330318694,1719257443063,-151.0,0.0002068,2]
[330318696,1719257443073,-151.0,0.0002068,2]
[330318698,1719257443083,-606.419929,0.0002068,2]
[330318700,1719257443092,-606.419929,0.0002068,2]
[330318702,1719257443103,-456.093793,0.0002068,2]
[330318704,1719257443112,-1804.362065,0.0002068,2]
[330318706,1719257443122,-456.093793,0.0002068,2]
[330318708,1719257443132,-152.13431,0.0002068,2]
[330318710,1719257443143,-1804.362065,0.0002068,2]
[330318712,1719257443153,-153.886928,0.0002068,2]
[330318714,1719257443163,-168.226083,0.0002068,2]
[330318716,1719257443173,-151.0,0.0002068,2]
[330318718,1719257443182,-153.886928,0.0002068,2]
[330318720,1719257443191,-255.381279,0.0002068,2]
[330318722,1719257443201,-151.0,0.0002068,2]
[330318724,1719257443211,-255.381279,0.0002068,2]
[330318726,1719257443220,-151.0,0.0002068,2]
[330318728,1719257443230,-151.0,0.0002068,2]
[330318730,1719257443240,-151.581443,0.0002068,2]
[330318732,1719257443249,-570.579589,0.0002068,2]
[330318734,1719257443259,-570.579589,0.0002068,2]
[330318736,1719257443269,-151.0,0.0002068,2]
[330318738,1719257443280,-151.0,0.000208,2]
[330318740,1719257443290,-151.0,0.000208,2]
[330318742,1719257443299,-151.0,0.000208,2]
[330318744,1719257443309,-151.0,0.000208,2]
[330318746,1719257443319,-151.0,0.000208,2]
[330318748,1719257443328,-257.87981,0.000208,2]
[330318750,1719257443337,-151.0,0.000208,2]
[330318752,1719257443346,-257.87981,0.000208,2]
[330318754,1719257443357,-151.0,0.000208,2]
[330318757,1719257443372,-151.0,0.000208,2]
[330318759,1719257443381,-325.6,0.000208,2]
[330318761,1719257443394,-325.6,0.000208,2]
[330318762,1719257443403,-151.0,0.000208,2]
[330318765,1719257443415,-151.0,0.000208,2]
[330318767,1719257443424,-151.0,0.000208,2]
[330318769,1719257443435,-221.91433,0.000208,2]
[330318771,1719257443448,-1333.471904,0.000208,2]
[330318773,1719257443458,-221.91433,0.000208,2]
[330318775,1719257443468,-1333.471904,0.000208,2]
[330318777,1719257443477,-151.0,0.000208,2]
[330318779,1719257443487,-151.0,0.000208,2]
[330318781,1719257443497,-151.0,0.000208,2]
[330318783,1719257443507,-151.0,0.000208,2]
[330318785,1719257443517,-151.0,0.000208,2]
[330318787,1719257443527,-151.0,0.000208,2]
[330318789,1719257443538,-151.0,0.000208,2]
[330318791,1719257443547,-151.0,0.000208,2]
[330318793,1719257443557,-151.0,0.000208,2]
[330318795,1719257443567,-151.0,0.000208,2]
[330318797,1719257443577,-151.0,0.000208,2]
[330318800,1719257443587,-151.0,0.000208,2]
[330318802,1719257443596,-151.0,0.000208,2]
[330318803,1719257443606,-161.188264,0.000208,2]
[330318805,1719257443615,-151.0,0.000208,2]
[330318807,1719257443625,-199.359591,0.000208,2]
[330318809,1719257443635,-199.359591,0.000208,2]
[330318811,1719257443646,-576.631628,0.000208,2]
[330318813,1719257443656,-297.268325,0.000208,2]
[330318815,1719257443666,-576.631628,0.000208,2]
[330318817,1719257443675,-151.0,0.000208,2]
[330318819,1719257443685,-151.0,0.000208,2]
[330318822,1719257443695,-151.0,0.000208,2]
[330318824,1719257443705,-155.038945,0.000208,2]
[330318825,1719257443714,-1430.350881,0.000208,2]
[330318828,1719257443724,-151.0,0.000208,2]
[330318830,1719257443734,-1430.350881,0.000208,2]
[330318831,1719257443744,-151.0,0.000208,2]
[330318833,1719257443754,-151.0,0.000208,2]
[330318836,1719257443763,-168.913161,0.000208,2]
[330318838,1719257443772,-168.913161,0.000208,2]
[330318840,1719257443782,-383.483628,0.000208,2]
[330318842,1719257443792,-378.962525,0.000208,2]
[330318844,1719257443801,-244.697056,0.000208,2]
[330318846,1719257443811,-383.483628,0.000208,2]
[330318847,1719257443820,-378.962525,0.000208,2]
[330318850,1719257443830,-244.697056,0.000208,2]
[330318852,1719257443840,-151.0,0.000208,2]
[330318854,1719257443851,-183.551754,0.000208,2]
[330318856,1719257443861,-151.0,0.000208,2]
[330318858,1719257443871,-183.551754,0.000208,2]
[330318860,1719257443880,-151.0,0.000208,2]
[330318862,1719257443891,-151.0,0.000208,2]
[330318864,1719257443901,-151.0,0.000208,2]
[330318866,1719257443911,-213187.657404,0.000208,3]
[330318868,1719257443921,-151.0,0.000208,2]
[330318870,1719257443931,-256.085642,0.000208,2]
[330318872,1719257443941,-197.663913,0.000208,2]
[330318874,1719257443951,-151.0,0.000208,2]
[330318877,1719257443961,-197.663913,0.000208,2]
[330318881,1719257443971,-151.0,0.000208,2]
[330318885,1719257443982,-284.919633,0.000208,2]
[330318888,1719257443992,-339.30792,0.000208,2]
[330318891,1719257444002,-301.422606,0.000208,2]
[330318894,1719257444014,-1161.234529,0.000208,2]
[330318897,1719257444024,-339.30792,0.000208,2]
[330318900,1719257444034,-301.422606,0.000208,2]
[330318903,1719257444045,-1161.234529,0.000208,2]
[330318906,1719257444055,-151.0,0.000208,2]
[330318908,1719257444066,-151.0,0.000208,2]
[330318911,1719257444076,-606.419929,0.000208,2]
[330318914,1719257444086,-606.419929,0.000208,2]
[330318917,1719257444096,-456.093793,0.000208,2]
[330318918,1719257444106,-1804.362065,0.000208,2]
[330318921,1719257444116,-456.093793,0.000208,2]